bitfinex/quotes_ETHUSD_20240916
["timestamp","ask_amount","ask_price","bid_price","bid_amount"]
[1726459150692,3.8101,2283.0,2282.9,4.38039]
[1726459151009,3.98839686,2283.0,2282.9,6.20891382]
[1726459153019,3.98839686,2283.0,2282.9,4.38039]
[1726459154093,3.98839686,2283.0,2282.8,4.38058]
[1726459154435,3.98839686,2283.0,2282.8,4.38048]
[1726459154887,3.98839686,2283.0,2282.8,8.76096]
[1726459155087,3.98839686,2283.0,2282.8,4.38048]
[1726459158739,3.98839686,2283.0,2282.6,8.76166]
[1726459159434,3.7904,2282.9,2282.6,8.76166]
[1726459159992,0.17829686,2282.8,2282.6,8.76166]
[1726459165601,0.17829686,2282.8,2282.6,4.38079]
[1726459165917,0.17829686,2282.8,2282.6,8.76161]
[1726459167046,0.17829686,2282.8,2282.6,8.76165]
[1726459167842,0.17829686,2282.8,2282.7,4.38077]
[1726459170906,0.17829686,2282.8,2282.7,6.20929382]
[1726459171307,0.17829686,2282.8,2282.7,4.38077]
[1726459172151,0.17829686,2282.8,2282.7,6.20929382]
[1726459172448,0.17158433,2282.8,2282.7,6.20929382]
[1726459172814,4.0664403,2283.1,2282.7,6.20929382]
[1726459173017,0.17158433,2282.8,2282.7,6.20929382]
[1726459173244,0.59350795,2282.8,2282.7,6.20929382]
[1726459173404,0.76509228,2282.8,2282.7,4.38077]
[1726459175025,0.7650951,2282.8,2282.7,4.38077]
[1726459176723,0.7650951,2282.8,2282.7,8.76154]
[1726459178448,0.17158433,2282.8,2282.7,8.76154]
[1726459178650,0.76509084,2282.8,2282.7,8.76154]
[1726459178814,0.59350651,2282.8,2282.7,8.76154]
[1726459179015,0.76508067,2282.8,2282.7,8.76154]
[1726459180111,0.76508067,2282.8,2282.7,23.4558402]
[1726459180112,0.17157416,2282.8,2282.7,23.4558402]
[1726459180547,0.0381403,2283.1,2283.0,8.7604]
[1726459181224,0.20400744,2283.1,2283.0,8.7604]
[1726459181420,0.0381403,2283.1,2283.0,10.64492838]
[1726459181741,0.20400744,2283.1,2283.0,10.64492838]
[1726459185047,0.20400744,2283.1,2283.0,19.20842838]
[1726459185427,0.0381403,2283.1,2283.0,19.20842838]
[1726459192160,0.0381403,2283.1,2283.0,15.57512838]
[1726459192373,0.0381403,2283.1,2283.0,17.4036522]
[1726459200168,0.0381403,2283.1,2283.0,17.3824422]
[1726459200666,0.62755103,2283.1,2283.0,17.3824422]
[1726459200963,0.0381403,2283.1,2283.0,17.3824422]
[1726459201165,0.0381403,2283.1,2283.0,13.66939]
[1726459201384,0.62755178,2283.1,2283.0,15.49791382]
[1726459201664,0.0381403,2283.1,2283.0,10.56771382]
[1726459201841,0.62756276,2283.1,2283.0,10.56771382]
[1726459202047,0.62756276,2283.1,2283.0,8.73919]
[1726459203145,0.0381403,2283.1,2283.0,8.73919]
[1726459203343,0.62757901,2283.1,2283.0,10.56771382]
[1726459206167,4.19306789,2283.1,2282.8,4.38047]
[1726459206372,0.58942759,2283.0,2282.9,4.38027]
[1726459207876,0.58942759,2283.0,2282.8,4.38041]
[1726459208197,3.6036403,2283.1,2282.8,4.38041]
[1726459208198,4.37542759,2282.9,2282.8,4.38041]
[1726459209397,5.76798418,2282.9,2282.4,11.78117]
[1726459209700,0.58947894,2282.8,2282.4,8.76242]
[1726459209897,3.9432,2282.6,2282.4,4.38117]
[1726459210057,3.9432,2282.6,2282.3,4.38145]
[1726459210262,5.30232163,2282.8,2282.3,4.38145]
[1726459210263,3.9432,2282.4,2282.3,0.36299399]
[1726459210572,3.9432,2282.4,2282.2,4.3816]
[1726459211391,3.9432,2282.4,2282.1,4.3818]
[1726459211591,3.9432,2282.4,2282.2,4.38172]
[1726459212257,0.92163163,2282.7,2282.6,8.76192]
[1726459212467,0.92163163,2283.2,2283.0,8.7604]
[1726459212700,4.85123163,2283.3,2283.0,4.3802]
[1726459212869,4.85123163,2283.3,2282.9,4.38029]
[1726459213202,0.92163163,2283.2,2282.9,4.38029]
[1726459213570,3.9296,2283.0,2282.5,4.38102]
[1726459213962,0.58951583,2282.9,2282.5,4.38102]
[1726459214158,4.85123163,2283.0,2282.5,8.76207]
[1726459214398,0.58952846,2282.9,2282.5,8.76207]
[1726459214603,4.85123163,2283.0,2282.5,8.76207]
[1726459214759,0.58953042,2282.9,2282.5,4.38102]
[1726459215107,4.85123163,2283.0,2282.5,4.38102]
[1726459215401,0.58953711,2282.9,2282.5,4.38102]
[1726459215609,4.39354203,2282.8,2282.4,4.38134]
[1726459215757,3.804,2282.8,2282.4,4.38134]
[1726459216192,3.804,2282.8,2282.3,4.3814]
[1726459216193,4.72563163,2282.8,2282.3,4.3814]
[1726459216397,3.804,2282.6,2282.3,4.3814]
[1726459217561,0.16597939,2282.5,2282.3,4.3814]
[1726459220407,0.16597939,2282.5,2282.4,6.20987382]
[1726459221110,0.16547934,2282.5,2282.3,4.3814]
[1726459221254,3.7568,2282.8,2282.3,4.3814]
[1726459221459,0.16547934,2282.7,2282.3,4.3814]
[1726459221660,3.7568,2282.8,2282.3,4.3814]
[1726459221855,0.16547934,2282.7,2282.3,4.3814]
[1726459222059,3.7568,2282.8,2282.3,4.3814]
[1726459222297,0.16547934,2282.7,2282.3,4.3814]
[1726459222496,3.7568,2282.8,2282.3,8.76283]
[1726459222799,0.16547934,2282.6,2282.3,4.3814]
[1726459223045,0.16495887,2282.7,2282.3,4.3814]
[1726459223302,0.16495887,2282.6,2282.3,4.3814]
[1726459223503,3.7568,2282.8,2282.3,8.76285]
[1726459223797,3.7568,2282.8,2282.4,10.59122382]
[1726459223798,0.16495887,2282.5,2282.4,10.59122382]
[1726459223968,0.92163163,2283.0,2282.4,5.49542382]
[1726459223969,3.7834,2283.0,2282.4,5.49542382]
[1726459224169,0.0381403,2283.1,2282.9,6.20886382]
[1726459224370,0.0381403,2283.1,2282.9,6.20880382]
[1726459224584,0.0381403,2283.1,2282.9,10.58909382]
[1726459224787,0.0381403,2283.1,2282.9,6.20880382]
[1726459225703,0.0381403,2283.1,2282.9,10.58909382]
[1726459226201,0.0381403,2283.1,2282.9,4.38028]
[1726459228393,0.16536709,2283.0,2282.9,4.38028]
[1726459228565,0.16536709,2283.0,2282.9,6.20880382]
[1726459229101,0.16536709,2283.0,2282.9,1.82852382]
[1726459229261,0.16536709,2283.0,2282.8,4.38047]
[1726459229461,3.74796709,2283.0,2282.8,4.38047]
[1726459229689,0.16536709,2283.0,2282.8,4.38046]
[1726459230612,0.16536709,2283.0,2282.9,1.82852382]
[1726459230818,0.16536709,2283.0,2282.9,6.20891382]
[1726459231909,0.16536709,2283.0,2282.9,4.38039]
[1726459232723,0.16536709,2283.0,2282.8,4.38046]
[1726459235387,0.16536709,2283.0,2282.6,4.38081]
[1726459235388,3.828,2282.9,2282.6,4.38081]
[1726459235591,3.828,2282.9,2282.4,11.78123]
[1726459235592,3.828,2282.9,2282.4,13.60975382]
[1726459235899,0.16578554,2282.8,2282.4,10.59094382]
[1726459236435,0.16578554,2282.8,2282.4,6.20971382]
[1726459236635,0.16578554,2282.8,2282.4,10.59097382]
[1726459236840,0.16578554,2282.8,2282.4,6.20971382]
[1726459237038,0.16578554,2282.8,2282.4,4.38119]
[1726459237535,0.16578554,2282.8,2282.4,6.20971382]
[1726459237890,0.16578554,2282.8,2282.4,10.59095382]
[1726459238164,0.16578554,2282.8,2282.4,6.20971382]
[1726459239224,0.16578554,2282.8,2282.4,10.59096382]
[1726459239424,0.16578554,2282.8,2282.4,6.20971382]
[1726459239653,0.16578554,2282.8,2282.4,10.59097382]
[1726459241073,0.16578554,2282.8,2282.7,4.38077]
[1726459241372,3.6186403,2283.1,2282.9,4.38038]
[1726459241373,0.0381403,2283.1,2282.9,4.38038]
[1726459241894,3.5415403,2283.1,2282.7,10.58988382]
[1726459242033,3.5415403,2283.1,2282.7,11.39919082]
[1726459242230,3.5415403,2283.1,2282.7,11.39909082]
[1726459242435,3.5415403,2283.1,2282.7,7.01842082]
[1726459242670,3.5415403,2283.1,2282.7,11.39909082]
[1726459243075,3.5415403,2283.1,2282.7,4.38059]
[1726459243549,0.16581615,2283.0,2282.7,4.38059]
[1726459243881,0.16581615,2283.0,2282.9,1.82852382]
[1726459244734,0.16581615,2283.0,2282.7,6.20911382]
[1726459245339,0.16581615,2283.0,2282.9,1.82852382]
[1726459246103,0.75532438,2283.0,2282.9,1.82852382]
[1726459246303,0.16581615,2283.0,2282.9,1.82852382]
[1726459246820,0.75532531,2283.0,2282.9,1.82852382]
[1726459247024,0.16581615,2283.0,2282.9,1.82852382]
[1726459247407,0.75532003,2283.0,2282.9,1.82852382]
[1726459248504,0.75532103,2283.0,2282.9,1.82852382]
[1726459250658,0.75532103,2283.0,2282.8,4.38]
[1726459250848,3.8203,2282.9,2282.8,4.38]
[1726459251047,4.40981445,2282.9,2282.8,4.38]
[1726459251349,4.57550814,2282.9,2282.8,4.38]
[1726459251937,4.57553507,2282.9,2282.8,4.38]
[1726459253202,6.5429379,2282.9,2282.8,4.38]
[1726459253562,6.54292704,2282.9,2282.8,4.38]
[1726459253944,7.00425954,2282.9,2282.8,4.38]
[1726459254134,5.62129541,2282.9,2282.8,4.38]
[1726459254538,11.38464954,2282.9,2282.8,4.38]
[1726459254874,11.38023296,2282.9,2282.8,4.38]
[1726459255272,10.79069158,2282.9,2282.8,4.38]
[1726459255440,11.38028222,2282.9,2282.8,4.38]
[1726459255640,13.82696828,2282.9,2282.8,4.38]
[1726459255866,11.38021453,2282.9,2282.8,4.38]
[1726459256062,11.96980497,2282.9,2282.8,4.38]
[1726459256431,11.98570655,2282.9,2282.8,4.38]
[1726459256636,13.82697317,2282.9,2282.8,4.38]
[1726459257071,24.04206458,2282.9,2282.8,4.38]
[1726459257382,30.62521024,2282.9,2282.8,4.38]
[1726459257875,27.86831733,2282.9,2282.8,4.38]
[1726459258231,30.62471882,2282.9,2282.8,4.38]
[1726459258780,28.20660456,2282.9,2282.8,4.38]
[1726459258982,28.7962885,2282.9,2282.8,4.38]
[1726459259475,24.29662019,2282.9,2282.8,4.38]
[1726459259654,26.03881296,2282.9,2282.8,4.38]
[1726459259858,26.03881164,2282.9,2282.8,4.38]
[1726459260037,24.29662019,2282.9,2282.8,4.38]
[1726459260239,26.03881273,2282.9,2282.8,4.38]
[1726459260440,30.62369659,2282.9,2282.8,4.38]
[1726459260684,19.36623019,2282.9,2282.8,4.38]
[1726459261121,19.36565787,2282.9,2282.8,4.38]
[1726459261483,18.77606723,2282.9,2282.8,4.38]
[1726459262324,14.39567723,2282.9,2282.8,4.38]
[1726459262488,16.23185195,2282.9,2282.8,4.38]
[1726459263827,16.23140674,2282.9,2282.8,4.38]
[1726459264573,16.23135464,2282.9,2282.8,4.38]
[1726459264946,21.07080657,2282.9,2282.8,4.38]
[1726459265529,19.32556992,2282.9,2282.8,4.38]
[1726459265743,19.32552512,2282.9,2282.8,4.38]
[1726459267672,21.06628733,2282.9,2282.8,1.75711271]
[1726459267875,23.81977794,2282.9,2282.8,1.75711271]
[1726459268043,19.32552512,2282.9,2282.8,1.75711271]
[1726459268668,23.80166432,2282.9,2282.8,1.75711271]
[1726459270182,23.78884473,2282.9,2282.8,1.75711271]
[1726459270962,19.31418268,2282.9,2282.8,1.75711271]
[1726459271181,18.72455084,2282.9,2282.8,1.75711271]
[1726459271327,19.31424921,2282.9,2282.8,1.75711271]
[1726459271529,21.05694617,2282.9,2282.8,1.75711271]
[1726459271765,20.59833927,2282.9,2282.8,1.75711271]
[1726459272177,21.05694617,2282.9,2282.8,1.75711271]
[1726459272850,18.76424921,2282.9,2282.8,1.75711271]
[1726459273529,21.05694617,2282.9,2282.8,1.75711271]
[1726459274882,21.0562447,2282.9,2282.8,1.75711271]
[1726459275083,20.46654633,2282.9,2282.8,1.75711271]
[1726459275387,21.05621053,2282.9,2282.8,1.75711271]
[1726459275879,20.59780021,2282.9,2282.8,1.75711271]
[1726459276382,21.05621053,2282.9,2282.8,1.75711271]
[1726459276664,18.76378882,2282.9,2282.8,1.75711271]
[1726459277030,21.05621053,2282.9,2282.8,1.75711271]
[1726459277975,16.67582053,2282.9,2282.8,1.75711271]
[1726459278269,16.21768787,2282.9,2282.8,1.75711271]
[1726459278483,16.2176799,2282.9,2282.8,1.75711271]
[1726459279173,14.36477886,2282.9,2282.8,1.75711271]
[1726459279478,5.00036671,2282.9,2282.8,1.75711271]
[1726459279690,2.70582595,2282.9,2282.8,1.75711271]
[1726459280250,2.11616972,2282.9,2282.8,1.75711271]
[1726459280566,2.70576766,2282.9,2282.8,1.75711271]
[1726459280969,5.70576766,2282.9,2282.8,1.75711271]
[1726459282096,5.70576304,2282.9,2282.8,1.75711271]
[1726459284092,5.70612608,2282.9,2282.8,1.75711271]
[1726459285402,4.78889894,2282.9,2282.8,1.75711271]
[1726459285552,5.70653878,2282.9,2282.8,1.75711271]
[1726459285755,5.11694416,2282.9,2282.8,1.75711271]
[1726459286095,5.70653861,2282.9,2282.8,1.75711271]
[1726459286277,6.16473775,2282.9,2282.8,1.75711271]
[1726459286680,4.78889509,2282.9,2282.8,1.75711271]
[1726459287194,6.16473775,2282.9,2282.8,1.75711271]
[1726459290698,6.16811596,2282.9,2282.8,1.75711271]
[1726459290897,6.16632659,2282.9,2282.8,1.75711271]
[1726459291203,6.16814847,2282.9,2282.8,1.75711271]
[1726459291402,8.00243752,2282.9,2282.8,1.75711271]
[1726459291965,6.16814847,2282.9,2282.8,1.75711271]
[1726459292197,8.00243752,2282.9,2282.8,1.75711271]
[1726459293876,11.57433752,2282.9,2282.8,1.75711271]
[1726459294472,9.74004847,2282.9,2282.8,1.75711271]
[1726459294705,12.03393476,2282.9,2282.8,1.75711271]
[1726459296109,9.74004847,2282.9,2282.8,1.75711271]
[1726459296461,9.74008423,2282.9,2282.8,1.75711271]
[1726459299804,18.60045377,2282.9,2282.8,1.75711271]
[1726459300695,15.84779022,2282.9,2282.8,1.75711271]
[1726459300881,18.60814399,2282.9,2282.8,1.75711271]
[1726459301083,14.22775399,2282.9,2282.8,1.75711271]
[1726459301476,18.60814399,2282.9,2282.8,1.75711271]
[1726459302912,18.61150097,2282.9,2282.8,1.75711271]
[1726459303222,18.02187753,2282.9,2282.8,1.75711271]
[1726459303425,18.61151282,2282.9,2282.8,1.75711271]
[1726459303629,15.85082703,2282.9,2282.8,1.75711271]
[1726459304437,20.23121703,2282.9,2282.8,1.75711271]
[1726459305877,23.45278896,2282.9,2282.8,1.75711271]
[1726459306737,23.45272046,2282.9,2282.8,1.75711271]
[1726459307038,19.64177778,2282.9,2282.8,0.16122067]
[1726459307210,20.23146393,2282.9,2282.8,0.16122067]
[1726459307734,25.15485694,2282.9,2282.8,0.16122067]
[1726459307901,31.01955836,2282.9,2282.8,0.16122067]
[1726459308801,31.01911068,2282.9,2282.8,0.16122067]
[1726459309250,27.21454023,2282.9,2282.8,0.16122067]
[1726459309537,25.15476566,2282.9,2282.8,0.16122067]
[1726459309906,31.01858867,2282.9,2282.8,0.16122067]
[1726459311343,27.21401822,2282.9,2282.8,0.16122067]
[1726459311550,25.15476566,2282.9,2282.8,0.16122067]
[1726459312114,24.12502876,2282.9,2282.8,0.16122067]
[1726459312339,25.15437939,2282.9,2282.8,0.16122067]
[1726459315042,24.56468678,2282.9,2282.8,0.16122067]
[1726459315357,25.15440656,2282.9,2282.8,0.16122067]
[1726459317190,27.21243224,2282.9,2282.8,0.16122067]
[1726459317329,31.01556777,2282.9,2282.8,0.01576796]
[1726459318269,26.18155222,2282.9,2282.8,0.01576796]
[1726459318634,26.18148479,2282.9,2282.8,0.01576796]
[1726459318832,23.53533615,2282.9,2282.8,0.01576796]
[1726459319067,24.12506558,2282.9,2282.8,0.01576796]
[1726459319231,24.32481146,2282.9,2282.8,0.01576796]
[1726459319567,24.32481207,2282.9,2282.8,0.01576796]
[1726459321453,23.73508203,2282.9,2282.8,0.01576796]
[1726459321771,24.32480841,2282.9,2282.8,0.01576796]
[1726459323447,30.18363419,2282.9,2282.8,0.01576796]
[1726459323774,31.9528686,2282.9,2282.8,0.01576796]
[1726459324977,31.94915219,2282.9,2282.8,0.01576796]
[1726459325128,31.94917744,2282.9,2282.8,0.01576796]
[1726459325955,36.32956744,2282.9,2282.8,0.01576796]
[1726459327482,36.32956744,2282.9,2282.8,0.00155076]
[1726459328341,31.94917744,2282.9,2282.8,0.00155076]
[1726459328874,31.35942581,2282.9,2282.8,0.00155076]
[1726459329028,31.94918332,2282.9,2282.8,0.00155076]
[1726459329464,31.35942581,2282.9,2282.8,0.00155076]
[1726459329732,31.9479614,2282.9,2282.8,0.00155076]
[1726459329934,28.14976916,2282.9,2282.8,0.0001526]
[1726459330346,27.56000669,2282.9,2282.8,0.0001526]
[1726459330561,28.14977509,2282.9,2282.8,0.0001526]
[1726459330986,27.56751059,2282.9,2282.8,0.0001526]
[1726459331271,3.86203455,2282.9,2282.8,0.0001526]
[1726459331479,6.61740546,2282.9,2282.8,3.6993526]
[1726459331663,2.13471547,2282.9,2282.8,3.6993526]
[1726459332753,2.59240183,2282.9,2282.8,3.6993526]
[1726459333235,3.97165521,2282.9,2282.8,3.6993526]
[1726459333831,6.97165521,2282.9,2282.8,3.6993526]
[1726459335179,3.97165521,2282.9,2282.8,3.6993526]
[1726459335393,3.38188681,2282.9,2282.8,3.6993526]
[1726459335544,2.1329943,2282.9,2282.8,3.6993526]
[1726459336279,1.08414928,2282.9,2282.8,15.27947346]
[1726459336498,0.0381403,2283.1,2283.0,12.6089]
[1726459336698,2.75549719,2283.7,2283.4,4.37943]
[1726459336699,8.84771365,2283.6,2283.4,4.37943]
[1726459336979,1.37771365,2283.7,2283.5,3.8485]
[1726459337136,0.58942916,2283.6,2283.5,4.671293]
[1726459337339,0.58942916,2283.6,2283.5,3.8485]
[1726459340011,0.58946844,2283.6,2283.5,3.8485]
[1726459340235,9.34623209,2283.6,2283.5,3.8485]
[1726459340509,4.37771365,2283.6,2283.5,3.8485]
[1726459340672,4.96720956,2283.6,2283.5,3.8485]
[1726459340883,5.55670664,2283.6,2283.5,3.8485]
[1726459341499,1.96720956,2283.6,2283.5,3.8485]
[1726459341696,5.55670858,2283.6,2283.5,3.8485]
[1726459342001,4.96721267,2283.6,2283.5,3.8485]
[1726459343475,4.37771365,2283.6,2283.5,3.8485]
[1726459343679,4.96722332,2283.6,2283.5,3.8485]
[1726459343890,5.12555712,2283.6,2283.5,3.8485]
[1726459345200,3.74784347,2283.6,2283.5,3.8485]
[1726459345369,0.74784347,2283.6,2283.5,3.8485]
[1726459347261,0.1583338,2283.6,2283.5,3.8485]
[1726459347509,0.74781175,2283.6,2283.5,3.8485]
[1726459351079,0.1583338,2283.6,2283.5,3.8485]
[1726459351279,0.58947833,2283.7,2283.5,3.8485]
[1726459351466,0.74781213,2283.6,2283.5,3.8485]
[1726459351666,0.74781423,2283.6,2283.5,3.8485]
[1726459352480,0.74780128,2283.6,2283.5,3.8485]
[1726459352710,0.1583338,2283.6,2283.5,3.8485]
[1726459352920,0.0381403,2283.8,2283.5,3.8485]
[1726459353120,0.15951837,2283.6,2283.5,3.8485]
[1726459353439,0.58946675,2283.6,2283.5,3.8485]
[1726459353598,0.74898512,2283.6,2283.5,3.8485]
[1726459354019,0.74898944,2283.6,2283.5,3.8485]
[1726459354886,0.74898272,2283.6,2283.5,3.8485]
[1726459355727,0.15951837,2283.6,2283.5,3.8485]
[1726459355936,0.15951837,2283.6,2283.5,5.109225]
[1726459356132,0.15951837,2283.6,2283.5,9.488465]
[1726459356300,0.0381403,2283.8,2283.6,4.37895]
[1726459356627,0.0381403,2283.8,2283.7,3.6671]
[1726459357030,0.62756473,2283.8,2283.7,3.6671]
[1726459357197,0.62756473,2283.8,2283.5,3.6671]
[1726459357403,0.58942444,2283.7,2283.6,3.6671]
[1726459358406,0.0381403,2283.8,2283.6,3.6671]
[1726459358618,0.58942398,2283.7,2283.6,3.6671]
[1726459359205,0.58942398,2283.7,2283.6,8.04615]
[1726459362103,0.0381403,2283.8,2283.6,8.04615]
[1726459362307,0.58941826,2283.7,2283.6,8.04615]
[1726459362711,0.0381403,2283.8,2283.6,8.04615]
[1726459363049,0.58941887,2283.7,2283.6,8.04615]
[1726459363651,0.15977354,2283.7,2283.6,8.04615]
[1726459363807,0.58941586,2283.7,2283.6,8.04615]
[1726459364008,0.7491894,2283.7,2283.6,8.04615]
[1726459364706,0.7491894,2283.7,2283.6,3.6671]
[1726459365929,0.7492132,2283.7,2283.6,3.6671]
[1726459366172,1.33865311,2283.7,2283.6,3.6671]
[1726459366857,1.33865311,2283.7,2283.6,8.04615]
[1726459369993,1.33865311,2283.7,2283.6,3.6671]
[1726459372255,0.74921345,2283.7,2283.6,3.6671]
[1726459373184,0.74921345,2283.7,2283.6,8.04615]
[1726459373493,0.74921345,2283.7,2283.6,3.6671]
[1726459373652,0.15977354,2283.7,2283.6,3.6671]
[1726459373855,0.58942438,2283.7,2283.6,3.6671]
[1726459374059,0.74914688,2283.7,2283.6,3.6671]
[1726459376610,1.66699706,2283.7,2283.6,3.6671]
[1726459376901,1.66699893,2283.7,2283.6,3.6671]
[1726459377501,2.1268624,2283.7,2283.6,3.6671]
[1726459378354,2.1268624,2283.7,2283.2,4.37973]
[1726459378355,7.73750587,2283.7,2283.2,4.37973]
[1726459378559,0.91892613,2283.4,2283.2,4.37973]
[1726459378792,1.96784181,2283.3,2283.0,8.20311]
[1726459379000,0.91895215,2283.1,2283.0,8.2031]
[1726459379195,0.58946873,2283.1,2283.0,8.2031]
[1726459379398,1.66821484,2283.1,2283.0,8.2031]
[1726459379608,0.74926269,2283.1,2283.0,12.5833]
[1726459379784,1.66821484,2283.1,2283.0,12.5833]
[1726459379984,1.66821484,2283.1,2283.0,8.2031]
[1726459380195,1.66825208,2283.1,2283.0,8.2031]
[1726459380356,1.66825208,2283.1,2283.0,3.823]
[1726459380795,1.66825208,2283.1,2283.0,8.2032]
[1726459380796,0.74929993,2283.1,2283.0,8.2032]
[1726459380993,1.66896564,2283.1,2283.0,8.2032]
[1726459381404,2.12772816,2283.1,2283.0,8.2032]
[1726459381924,2.12772816,2283.1,2283.0,3.823]
[1726459382496,1.53822219,2283.1,2283.0,3.823]
[1726459382687,2.12774985,2283.1,2283.0,3.823]
[1726459382891,3.9310307,2283.1,2282.8,3.7305526]
[1726459383187,1.38023121,2282.9,2282.8,3.7305526]
[1726459383422,3.77454987,2282.9,2282.8,3.7305526]
[1726459383622,2.09364182,2282.9,2282.8,0.0001526]
[1726459383802,3.93389469,2282.9,2282.8,0.0001526]
[1726459384389,2.12842567,2282.9,2282.8,0.0001526]
[1726459385183,3.93335499,2282.9,2282.8,0.0001526]
[1726459385530,2.12815449,2282.9,2282.8,0.0001526]
[1726459386026,1.53862683,2282.9,2282.8,0.0001526]
[1726459386232,2.12820265,2282.9,2282.8,0.0001526]
[1726459386436,2.12820328,2282.9,2282.8,0.0001526]
[1726459389545,0.74892269,2282.9,2282.8,0.0001526]
[1726459389719,2.1282047,2282.9,2282.8,0.0001526]
[1726459389895,0.74892269,2282.9,2282.8,0.0001526]
[1726459390403,1.66767729,2282.9,2282.8,0.0001526]
[1726459392956,6.5085947,2282.9,2282.8,0.0001526]
[1726459393109,6.12050001,2282.9,2282.8,0.0001526]
[1726459393305,6.08522348,2282.9,2282.8,0.0001526]
[1726459393505,7.92547635,2282.9,2282.8,0.0001526]
[1726459393807,3.93177635,2282.9,2282.8,3.8314526]
[1726459394006,1.66720404,2282.9,2282.8,3.8314526]
[1726459394244,0.74717065,2282.9,2282.8,3.8314526]
[1726459394428,1.66545421,2282.9,2282.8,0.0001526]
[1726459394620,2.12463909,2282.9,2282.8,0.0001526]
[1726459396886,2.12463909,2282.9,2282.8,14.20142069]
[1726459396887,0.74717368,2282.9,2282.8,14.20142069]
[1726459397093,0.74717368,2282.9,2282.8,15.62156276]
[1726459398287,0.74717368,2282.9,2282.8,9.41437467]
[1726459398587,0.74717368,2282.9,2282.8,7.9942326]
[1726459398798,0.74717368,2282.9,2282.8,4.3807326]
[1726459400668,0.15759278,2282.9,2282.8,8.3348326]
[1726459400868,0.58954604,2282.9,2282.8,8.3348326]
[1726459401064,0.9178954,2283.1,2282.8,8.3348326]
[1726459401065,0.9178954,2283.1,2282.9,4.38039]
[1726459401383,0.58955252,2283.0,2282.9,4.38039]
[1726459401971,0.74748092,2283.0,2282.9,4.38039]
[1726459403978,0.1579284,2283.0,2282.9,4.38039]
[1726459404177,0.1579284,2283.0,2282.8,11.61564976]
[1726459404178,0.74747962,2283.0,2282.8,10.16144069]
[1726459404390,0.58955122,2282.9,2282.8,10.16132069]
[1726459404617,0.58955122,2282.9,2282.8,8.3347126]
[1726459404907,0.74783709,2282.9,2282.8,8.3347126]
[1726459406467,0.74783709,2282.9,2282.8,0.0001526]
[1726459406899,1.66573249,2282.9,2282.8,0.0001526]
[1726459407209,0.74783709,2282.9,2282.8,0.0001526]
[1726459407513,1.66573249,2282.9,2282.8,0.0001526]
[1726459407715,1.07618127,2282.9,2282.8,0.0001526]
[1726459408064,1.66576578,2282.9,2282.8,0.0001526]
[1726459409512,0.74787038,2282.9,2282.8,0.0001526]
[1726459410413,2.12533882,2282.9,2282.8,0.0001526]
[1726459410579,0.74787038,2282.9,2282.8,0.0001526]
[1726459411109,1.66595176,2282.9,2282.8,1.82676069]
[1726459411323,1.66595176,2282.9,2282.8,10.04754069]
[1726459411477,0.15828587,2282.9,2282.8,10.04754069]
[1726459411684,0.74785813,2282.9,2282.8,10.04754069]
[1726459413730,1.66593951,2282.9,2282.8,10.04754069]
[1726459414086,0.74785813,2282.9,2282.8,10.04754069]
[1726459414288,1.66593951,2282.9,2282.8,10.04754069]
[1726459415222,1.66592796,2282.9,2282.8,10.04754069]
[1726459416018,1.66592796,2282.9,2282.8,4.3807326]
[1726459417426,0.74784658,2282.9,2282.8,4.3807326]
[1726459417818,2.12531502,2282.9,2282.8,4.3807326]
[1726459419044,2.12532739,2282.9,2282.8,4.3807326]
[1726459421674,2.58811182,2282.9,2282.8,4.3807326]
[1726459421954,3.9322596,2282.9,2282.8,4.3807326]
[1726459422477,3.9322634,2282.9,2282.8,4.3807326]
[1726459423422,4.38858637,2282.9,2282.8,4.3807326]
[1726459425121,3.93349706,2282.9,2282.8,15.97307776]
[1726459425320,1.66853055,2282.9,2282.8,15.97307776]
[1726459426053,1.66844796,2282.9,2282.8,15.97307776]
[1726459426346,0.74778016,2282.9,2282.8,27.73423776]
[1726459426483,0.15828587,2282.9,2282.8,30.87277557]
[1726459426675,0.9206678,2283.3,2283.2,3.9315]
[1726459426905,1.07909664,2283.3,2283.2,3.9315]
[1726459427083,1.07909664,2283.3,2283.2,8.75962]
[1726459427281,1.07909664,2283.3,2283.2,12.69112]
[1726459427497,1.07909664,2283.3,2283.2,14.58089281]
[1726459429489,0.15842884,2283.3,2283.2,14.58089281]
[1726459429692,1.07909664,2283.3,2283.2,14.58089281]
[1726459430034,0.15842884,2283.3,2283.2,14.58089281]
[1726459432776,1.38104378,2283.6,2283.4,4.37943]
[1726459433119,0.91897179,2283.5,2283.4,14.43796809]
[1726459434043,0.91897179,2283.6,2283.5,8.75848]
[1726459434218,0.91897179,2283.6,2283.5,10.64019781]
[1726459434774,0.91897179,2283.6,2283.5,18.92123781]
[1726459435075,0.0381403,2283.8,2283.5,18.92123781]
[1726459435076,0.0381403,2283.8,2283.7,12.6595]
[1726459438320,0.19716125,2283.8,2283.7,12.6595]
[1726459439764,0.91897179,2284.3,2284.2,8.7558]
[1726459439925,1.87962683,2284.5,2283.5,4.37921]
[1726459439926,0.0381403,2284.5,2284.4,4.37751]
[1726459440125,0.95711209,2284.5,2284.4,4.37751]
[1726459440324,0.95711209,2284.5,2284.4,8.75502]
[1726459440831,0.0381403,2284.5,2284.4,4.37751]
[1726459441038,0.95711209,2284.5,2284.2,8.75555]
[1726459441227,0.95711209,2284.5,2284.2,4.37777]
[1726459441433,3.7434,2284.3,2284.2,4.37777]
[1726459446086,3.7434,2284.3,2284.1,6.20466809]
[1726459446393,3.7434,2284.3,2284.1,4.37806]
[1726459447331,0.14993956,2284.2,2284.1,4.37806]
[1726459447535,3.7434,2284.3,2284.1,4.37806]
[1726459447775,0.14993956,2284.2,2284.1,4.37806]
[1726459448077,3.7434,2284.3,2284.1,4.37806]
[1726459448439,0.14993956,2284.2,2284.1,4.37806]
[1726459448751,3.7434,2284.3,2284.1,4.37806]
[1726459448959,0.14996001,2284.2,2284.1,4.37806]
[1726459449282,3.7434,2284.3,2284.0,4.37816]
[1726459449439,0.14996001,2284.2,2284.0,4.37816]
[1726459449639,0.14996001,2284.2,2284.0,8.7563]
[1726459449898,3.7434,2284.3,2284.1,4.37809]
[1726459453072,3.7434,2284.3,2284.0,4.37814]
[1726459453073,3.7434,2284.3,2283.8,4.37859]
[1726459453270,4.08206227,2284.2,2283.8,4.37855]
[1726459454291,4.08206227,2284.2,2283.9,4.37842]
[1726459455574,4.08206227,2284.2,2284.0,4.37817]
[1726459455774,4.08206227,2284.2,2284.0,8.75636]
[1726459455987,4.08206227,2284.2,2284.0,8.75635]
[1726459456427,4.08206227,2284.2,2284.1,4.37809]